Cogmind - Beta 15 @@@ ROGUE MODE // 2025.07.06 @ 10:16:27 Player: daxter767676 Result: Destroyed by OA-5OZ(j) with Overtuned Pulse Rifle Performance ------------- Evolutions (0) 0 Regions Visited (4) 800 Robots Destroyed (12) 60 Value Destroyed (232) 232 Prototype IDs (0) 0 Alien Tech Used (0) 0 Bonus (300) 300 TOTAL SCORE: 1392 Bonus ------- Registered with UFD 300 Cogmind --------- Core Integrity 0/250 Matter 298/300 Energy 100/100 System Corruption 0% Temperature Cool (12) Movement Core (450) Ox8 Location -8/Scraptown Parts ------- > --- POWER (1) -------- (None) > --- PROPULSION (2) --- (None) > --- UTILITY (2) ------ Large Storage Unit Visual Processing Unit > --- WEAPON (2) ------- Makeshift Laser Heavy Flail > --- INVENTORY (15) --- Makeshift Power Source Subdweller Monowheel Subdweller Monowheel Cryofiber Web Improved Heat Sink Improved Heat Sink Compact Battery (200) Small Matter Pod (50) Machine Analyzer Improved Sensor Array Improved Weapon Shielding Authchip [Armor] Subdweller Machine Gun Subdweller Shrapnel Launcher Plasma Cutter Peak State ------------ > --- POWER ------------ Light Ion Engine > --- PROPULSION ------- Subdweller Monowheel Subdweller Monowheel > --- UTILITY ---------- Large Storage Unit Visual Processing Unit > --- WEAPON ----------- Makeshift Laser Heavy Flail > --- INVENTORY -------- Makeshift Power Source Spiked Treads Subdweller Monowheel Cryofiber Web Improved Heat Sink Improved Heat Sink Compact Battery Small Matter Pod Machine Analyzer Improved Sensor Array Improved Weapon Shielding Authchip [Armor] Subdweller Machine Gun Subdweller Shrapnel Launcher Plasma Cutter [Rating: 19] Favorites ----------- Power Light Ion Engine Engine Light Ion Engine Propulsion Subdweller Monowheel Treads Spiked Treads Leg Aluminum Leg Wheel Subdweller Monowheel Utility Visual Processing Unit Storage Small Storage Unit Processor Visual Processing Unit Weapon Subdweller Machine Gun Energy Gun Small Laser Ballistic Gun Subdweller Machine Gun Launcher Subdweller Shrapnel Launcher Special Weapon Plasma Cutter Impact Weapon Heavy Flail Build | -11 -10 -10 -8 -8 ------- Run | Yrd Mat Sub Rec Scr Slots Evolved . | . . . . . Power . | . . . . . Propulsion . | . . . . . Utility . | . . . . . Weapon . | . . . . . Parts Attached 20 | . 1 12 2 5 Power 4 | . . 3 1 . Engine 4 | . . 3 1 . Core . | . . . . . Reactor . | . . . . . Propulsion 5 | . . 3 1 1 Treads 1 | . . . . 1 Leg 1 | . . 1 . . Wheel 3 | . . 2 1 . Hover . | . . . . . Flight . | . . . . . Utility 3 | . 1 1 . 1 Device . | . . . . . Storage 2 | . 1 . . 1 Processor 1 | . . 1 . . Hackware . | . . . . . Protection . | . . . . . Artifact . | . . . . . Weapon 8 | . . 5 . 3 Energy Gun 1 | . . . . 1 Energy Cannon . | . . . . . Ballistic Gun 4 | . . 4 . . Ballistic Cannon . | . . . . . Launcher 1 | . . 1 . . Special Weapon 1 | . . . . 1 Impact Weapon 1 | . . . . 1 Slashing Weapon . | . . . . . Piercing Weapon . | . . . . . Special Melee Weapon . | . . . . . Unidentified Prototypes . | . . . . . Parts Lost 4 | . . . 1 3 Power 2 | . . . 1 1 Propulsion 2 | . . . . 2 Utility . | . . . . . Weapon . | . . . . . Highest Loss Streak 3 | . . . 1 3 To Critical Strikes . | . . . . . Average Backups 10 | . 7 7 7 13 Power 1 | . 2 2 1 1 Propulsion 2 | . 3 3 2 2 Utility 3 | . . 1 1 7 Weapon 1 | . 1 1 2 2 Tool/Special . | . . . . . Unused Backups 26 | . 8 8 . 10 Power 5 | . 1 3 . 1 Propulsion 7 | . 4 2 . 1 Utility 9 | . 1 . . 8 Weapon 5 | . 2 3 . . Tool/Special . | . . . . . Average Slot Usage (%) 98 | . 93 99 100 99 Engine 13 | . 14 14 14 13 Treads 2 | . . . . 4 Leg 12 | . 28 22 . . Wheel 13 | . . 5 28 23 Storage 16 | . 22 15 14 14 Processor 10 | . . 12 14 14 Energy Gun 6 | . 14 3 . 4 Ballistic Gun 15 | . 14 22 28 9 Impact Weapon 5 | . . . . 12 Peak Build Rating 19 | . 7 13 14 19 Average Rating 12 | . 6 11 13 16 On Entrance 9 | 6 6 7 13 14 Naked Turns . | . . . . . Heaviest Build 30 | 13 14 22 15 30 Greatest Support 40 | 20 20 40 40 40 Greatest Overweight (x) 8 | . . 1 . 8 Average Overweight (x) . | . . . . . Largest Inventory Capacity 15 | . 8 8 8 15 Average Capacity 11 | . 8 8 8 14 Most Carried 15 | . 8 8 8 15 Average Carried 10 | . 7 7 7 13 Final Capacity 15 | 8 8 8 8 15 Final Carried 15 | 6 8 8 8 15 Class Distribution -------------------- 56% | Scavenger-Mutant 32% | Mutant 10% | Derelict-Mutant Dominant Class ---------------- Mutant | -10/Materials Scavenger-Mutant | -10/Subcaves Scavenger-Mutant | -8/Recycling Scavenger-Mutant | -8/Scraptown Resources | -11 -10 -10 -8 -8 ----------- Run | Yrd Mat Sub Rec Scr Matter Collected 538 | 200 30 248 . 60 Remotely . | . . . . . Salvage Created 221 | . 24 197 . . Parts 28 | . 5 23 . . Haulers Intercepted . | . . . . . Recyclers Shooed . | . . . . . Parts Field Recycled . | . . . . . Retrieved Matter . | . . . . . Parts Self-Destructed 15 | . . 15 . . Prevented . | . . . . . Kills | -11 -10 -10 -8 -8 ------- Run | Yrd Mat Sub Rec Scr Combat Hostiles Destroyed 9 | . . 9 . . Guns 9 | . . 9 . . Classes Destroyed 6 | . 2 4 . . Worker 1 | . 1 . . . Turret 1 | . . 1 . . Watcher 1 | . 1 . . . Swarmer 6 | . . 6 . . Sentry 1 | . . 1 . . Subdweller 2 | . . 2 . . Best Kill Streak 3 | . 2 3 . . Combat Bots Only 3 | . . 3 . . Max Kills in Single Turn 1 | . 1 1 . . Gunslinging . | . . . . . Exploded . | . . . . . Melee . | . . . . . Uniques/NPCs Destroyed . | . . . . . Combat | -11 -10 -10 -8 -8 -------- Run | Yrd Mat Sub Rec Scr Hostile Shots Fired 98 | . . 41 10 47 Missed 35 | . . 12 4 19 Hits 63 | . . 29 6 28 Projectile 63 | . . 29 6 28 AOE 2 | . . 2 . . Critical Strikes 3 | . . . . 3 Damage Taken 1081 | . . 380 87 614 Core 256 | . . 88 . 168 Absorbed by Shields . | . . . . . Core Remaining (%) 100 | 100 . . . . Volleys Fired 27 | . 7 17 . 3 Largest 2 | . 2 2 . 1 Hottest 70 | . 60 70 . 50 Shots Fired 48 | . 13 32 . 3 Gun 46 | . 13 30 . 3 Cannon . | . . . . . Launcher 2 | . . 2 . . Special . | . . . . . Kinetic 31 | . 7 24 . . Thermal 17 | . 6 8 . 3 Explosive . | . . . . . Electromagnetic . | . . . . . Robot Hit Streak 9 | . 2 9 . 7 Robot Miss Streak 4 | . 4 3 . 1 Penetration Max . | . . . . . Secondary Targets . | . . . . . Shots Hit Robots 29 | . 5 22 . 2 Core Hits 15 | . 2 12 . 1 Critical Kills . | . . . . . Critical Parts Destroyed 1 | . . 1 . . Critical Strikes 1 | . . 1 . . Destroy 1 | . . 1 . . Melee Attacks . | . . . . . Impact . | . . . . . Slashing . | . . . . . Piercing . | . . . . . Sneak Attacks . | . . . . . Combat Hostiles . | . . . . . Follow-up Attacks . | . . . . . Damage Inflicted 581 | . 56 489 . 36 Guns 427 | . 56 336 . 35 Cannons . | . . . . . Explosions 153 | . . 153 . . Melee . | . . . . . Ramming 1 | . . . . 1 Kinetic 457 | . 45 412 . . Thermal 123 | . 11 77 . 35 Explosive . | . . . . . Electromagnetic . | . . . . . Impact . | . . . . . Slashing . | . . . . . Piercing . | . . . . . Highest Corruption . | . . . . . Average Corruption . | . . . . . Corruption Purged . | . . . . . Corruption Blocked . | . . . . . Overload Shots . | . . . . . Overflow Damage 23 | . . 23 . . Projectiles . | . . . . . Explosions 23 | . . 23 . . Melee . | . . . . . Knockbacks . | . . . . . Impact . | . . . . . Kinetic . | . . . . . Secondary . | . . . . . Self-Inflicted Damage . | . . . . . Shots . | . . . . . Rammed 1 | . . . . 1 Targets Rammed 1 | . . . . 1 Kicked . | . . . . . Crushed . | . . . . . Highest Temperature 42 | . . . . 42 Average Temperature 19 | . . . . 19 Received Heat Transfer 471 | . . 33 27 411 Siege Activations . | . . . . . Martial Activations . | . . . . . Shielding Activations . | . . . . . Robots Disrupted . | . . . . . Combat Hostiles . | . . . . . Robots Corrupted . | . . . . . Combat Hostiles . | . . . . . Parts Fried . | . . . . . Impact Corruptions . | . . . . . Robots Melted . | . . . . . Combat Hostiles . | . . . . . Parts Melted . | . . . . . Heat Transferred 250 | . 25 175 . 50 Parts Sabotaged . | . . . . . Parts Stolen . | . . . . . Parts Stripped . | . . . . . Power Chain Reactions . | . . . . . Alert | -11 -10 -10 -8 -8 ------- Run | Yrd Mat Sub Rec Scr Maximum Alert Level . | . . . . . Low Security (%) 100 | . 100 . 100 . Level 1 . | . . . . . Level 2 . | . . . . . Level 3 . | . . . . . Level 4 . | . . . . . Level 5 . | . . . . . High Security . | . . . . . Max Security . | . . . . . Peak Influence 67 | . 7 . 67 . Initial 67 | . . . 67 . Average 6 | . . . 32 . Influence Increases 317 | . 12 275 30 . Destroy 0b10 Robot/C 160 | . . 160 . . Destroy 0b10 Robot/NC 10 | . 10 . . . Destroy Leader 12 | . 2 10 . . Lose Combat Pursuer 135 | . . 105 30 . Influence Decreases 317 | . 12 134 144 27 Entered New Map 101 | . . . 74 27 Time Decay 206 | . 12 134 60 . Lost Part 10 | . . . 10 . Squads Dispatched . | . . . . . Investigation . | . . . . . Extermination . | . . . . . Reinforcement . | . . . . . Assault . | . . . . . Garrison . | . . . . . Intercept . | . . . . . Searches Triggered . | . . . . . Construction Impeded . | . . . . . Haulers Reinforced . | . . . . . Active Scanning Responses . | . . . . . Cargo Convoy Interrupts . | . . . . . Stealth | -11 -10 -10 -8 -8 --------- Run | Yrd Mat Sub Rec Scr Distress Signals . | . . . . . Communications Jammed . | . . . . . Distress Signals . | . . . . . Times Spotted 29 | . 5 17 2 5 Peak Tracking Total 6 | . 1 5 2 6 Tactical Retreats 5 | . . 4 1 . Traps | -11 -10 -10 -8 -8 ------- Run | Yrd Mat Sub Rec Scr Traps Triggered . | . . . . . Indirectly . | . . . . . Trap Hack Attempts . | . . . . . Triggered . | . . . . . Disarmed . | . . . . . Reprogrammed . | . . . . . Reused . | . . . . . Traps Extracted . | . . . . . Installed . | . . . . . Triggered . | . . . . . Machines | -11 -10 -10 -8 -8 ---------- Run | Yrd Mat Sub Rec Scr Machines Disabled 6 | . . 4 . 2 Max in Single Turn 3 | . . 3 . 1 Machines Repaired . | . . . . . Machines Dismantled 2 | . . . . 2 Machines Sabotaged . | . . . . . Overloaded Fab Kills . | . . . . . Hacking | -11 -10 -10 -8 -8 --------- Run | Yrd Mat Sub Rec Scr Machines Accessed 1 | . 1 . . . Terminals 1 | . 1 . . . Fabricators . | . . . . . Repair Stations . | . . . . . Recycling Units . | . . . . . Scanalyzers . | . . . . . Garrison Access . | . . . . . Total Hacks 3 | . 3 . . . Successful 1 | . 1 . . . Failed 2 | . 2 . . . Catastrophic . | . . . . . Database Lockouts . | . . . . . Manual . | . . . . . Terminals 3 | . 3 . . . Fabricators . | . . . . . Repair Stations . | . . . . . Recycling Units . | . . . . . Scanalyzers . | . . . . . Garrison Access . | . . . . . Terminal Hacks 1 | . 1 . . . Recycling Unit Index 1 | . 1 . . . Fabricator Hacks . | . . . . . Repair Station Hacks . | . . . . . Recycling Unit Hacks . | . . . . . Scanalyzer . | . . . . . Garrison Access Hacks . | . . . . . Unauthorized Hacks . | . . . . . Terminals . | . . . . . Fabricators . | . . . . . Repair Stations . | . . . . . Recycling Units . | . . . . . Scanalyzers . | . . . . . Garrison Access . | . . . . . Data Cores Recovered . | . . . . . Used . | . . . . . Hacking Detections 1 | . 1 . . . Full Trace Events . | . . . . . Feedback Events . | . . . . . Feedback Blocked . | . . . . . Robot Schematics Acquired . | . . . . . Robots Built . | . . . . . Authchips . | . . . . . Time . | . . . . . Total Robot Build Rating . | . . . . . Part Schematics Acquired . | . . . . . Parts Built . | . . . . . Authchips . | . . . . . Time . | . . . . . Total Part Build Rating . | . . . . . Parts Repaired . | . . . . . Time . | . . . . . Parts Recycled . | . . . . . Recycled Matter . | . . . . . Retrieved Matter . | . . . . . Retrieved Components . | . . . . . Parts Scanalyzed . | . . . . . Part Schematics Acquired . | . . . . . Parts Damaged . | . . . . . Bothacking | -11 -10 -10 -8 -8 ------------ Run | Yrd Mat Sub Rec Scr Used RIF Installer . | . . . . . Robots Hacked . | . . . . . Non-combat . | . . . . . Combat . | . . . . . Robot Hacks Applied . | . . . . . Relay Couplers Released . | . . . . . Fabnet Peak Effective % . | . . . . . Robots Rewired . | . . . . . Allies Hacked . | . . . . . Hacks Repelled . | . . . . . Allies | -11 -10 -10 -8 -8 -------- Run | Yrd Mat Sub Rec Scr Total Allies . | . . . . . Largest Group . | . . . . . Highest-Rated Group . | . . . . . Highest-Rated Ally . | . . . . . Total Orders . | . . . . . Ally Attacks . | . . . . . Total Damage . | . . . . . Kills . | . . . . . Allies Corrupted . | . . . . . Allies Melted . | . . . . . Intel | -11 -10 -10 -8 -8 ------- Run | Yrd Mat Sub Rec Scr Active Infowar (turns) 1799 | . . 604 130 1065 Optics 1799 | . . 604 130 1065 Robot Analysis Total . | . . . . . Derelict Logs Recovered 5 | . . 2 . 3 Drone Launches . | . . . . . Drone Recoveries . | . . . . . Exploration | -11 -10 -10 -8 -8 ------------- Run | Yrd Mat Sub Rec Scr Turns Passed 2379 | . 509 675 130 1065 Spaces Moved 1396 | 1 156 420 114 705 Core 1 | . . . . 1 Treads 115 | . . . . 115 Legs 442 | 1 156 285 . . Wheels 838 | . . 135 114 589 Hover . | . . . . . Flight . | . . . . . Fastest Speed 110 | 120 120 110 110 110 Average Speed 129 | 120 120 118 110 141 Slowest Speed 450 | 120 120 190 110 450 Overloaded Moves . | . . . . . Propulsion Burnouts . | . . . . . Robots Hopped . | . . . . . Potential Cave-ins . | . . . . . Cave-ins Triggered . | . . . . . Exploration Rate (%) 27 | 1 19 32 39 48 Regions Visited 4 Branch Regions 3 Pre-discovered Areas 1 | . . 1 . . Known Exits Taken . | . . . . . Unknown Exits Taken 4 | 1 1 1 1 . Scrap Searched 6 | . . 2 . 4 Spaces Dug . | . . . . . Terrain Destroyed 27 | . . 27 . . Melee . | . . . . . Projectile . | . . . . . AOE 27 | . . 27 . . Terrain Rammed . | . . . . . Walls Destroyed . | . . . . . Machines Disabled . | . . . . . Actions | -11 -10 -10 -8 -8 --------- Run | Yrd Mat Sub Rec Scr Total 1896 | . 466 569 119 742 Wait 397 | . 296 94 1 6 Move 1392 | . 155 419 113 705 Hop . | . . . . . Pick Up 22 | . 5 8 2 7 Fast Attach 7 | . . 6 . 1 Attach 4 | . 1 1 2 . Detach . | . . . . . Swap 13 | . . 8 . 5 Drop 21 | . 2 16 1 2 Fire 27 | . 7 17 . 3 Melee . | . . . . . Ram . | . . . . . Kick . | . . . . . Crush 1 | . . . . 1 Escape Stasis . | . . . . . Rewire . | . . . . . Trap . | . . . . . Miscellaneous 12 | . . . . 12 Route ------- -11/Scrapyard -10/Materials (discovered 2 exits: [*Mat] / [*Sub]) -10/Subcaves -8/Recycling (discovered 2 exits: [*Fac] / *Scr) -8/Scraptown (discovered 1 exit: [*Fac]) History --------- Turn | Location | Event 1 | -11/Scrapyard | Discovered new exit (range 0) 1 | -11/Scrapyard | Entered Materials 273 | -10/Materials | Discovered new exit (range 5) 305 | -10/Materials | Build established: Mutant 499 | -10/Materials | Discovered new exit (range 10) 510 | -10/Materials | Entered Subcaves 582 | -10/Subcaves | Disturbed a concealed Subdweller 702 | -10/Subcaves | Learned 4 Materials zone layouts 860 | -10/Subcaves | Learned location of Recycling (-8) 990 | -10/Subcaves | Build established: Scavenger-Mutant 1109 | -10/Subcaves | Discovered new exit (range 15) 1185 | -10/Subcaves | Entered Recycling 1272 | -8/Recycling | Discovered new exit (range 8) 1287 | -8/Recycling | Scanned before Scraplab entrance 1302 | -8/Recycling | Entered Scraplab 1311 | -8/Recycling | Discovered new exit (range 4) 1315 | -8/Recycling | Entered Scraptown 1674 | -8/Scraptown | Scanned Subdweller tech in exchange for log data 1677 | -8/Scraptown | Learned location of 2 exits from Proximity Caves 1678 | -8/Scraptown | Learned Research security intel 1679 | -8/Scraptown | Learned location of 1 exit from Upper Caves 1709 | -8/Scraptown | Visited The Evicted 1733 | -8/Scraptown | Visited Shadow of the Wyrm 1762 | -8/Scraptown | Visited SPCMW 1822 | -8/Scraptown | Visited UFD Registry 1822 | -8/Scraptown | Registered with UFD as "Gunchaser" 1869 | -8/Scraptown | Visited Observation Area 1912 | -8/Scraptown | Visited Symbiants 1998 | -8/Scraptown | Discovered new exit (range 13) 2266 | -8/Scraptown | Attacked by Scraptown defenders 2346 | -8/Scraptown | Core integrity fell below 50% 2373 | -8/Scraptown | Core integrity fell below 20% 2380 | -8/Scraptown | Destroyed by OA-5OZ(j) with Overtuned Pulse Rifle Last Messages --------------- 02287_ Supplies dismantled. 02324_ Dismantling Machine with Plasma Cutter. 02330_ Machine dismantled. 02341_ Slammed into K7-1CM(j). 02357_ ANNOUNCEMENT: Triborg tracking relay activated. Stay clear or you only have yourself to blame! 02359_ Critical hit (Burn: +50). 02361_ Machine disabled. 02362_ K7-1CM(j) heat short circuits Mak. Salvage Targeting Computer. 02363_ Lgt. Ion Engine destroyed. 02364_ W3-D9S(j): "We're here to scrap you, Gunchaser!" 02368_ Critical hit (Burn: +50). 02375_ Spk. Treads destroyed. 02375_ Machine disabled. 02379_ Sub. Monowheel destroyed. Map ----- +----------------------------------------------------+ | ???????????#"""""""#?????????????????? | | ????########" "#?????????????????? | | ????# """ "#????########?????? | | ????# ######" """ "#???#"""""""#?????? | | ????# #????#" """ "#???#"" ""#?????? | | ????# #????#" "#???#"" ""#?????? | | ????# #??###""" """###?#""" ""#?????? | | ??### #### #?#"" ""#?????? | | ??#"" """" ###""" """####### | | ??#" """" | | ??#"" """ | | ??#""" | | ??#""" " ###### ########## | | ??#"" " ###### ######???? | | ??#""""""" #""""" """""##### | | ??######## #" " " # | | ?????????### #""" ""#" " " "### # | | ???????????# #""" "#" " " "#"" " | | ???????????#j #""" "#""""" """""#" " | | ???????????# #"" "###### ######" | | ???????????;jj#" "#???"" "????#" | | ???????????# #""" ""#?? " "????#" "" | | ???????????# #### ###? " ???#" | | ???????????# ##?# ??? " " ???#"""" | | ???#####???# ;#?###???"""" """??##### | | ???# #??## @##?????????## ##???????? | | ???# #??# ############ ########## | | ???# #??# j | | ???## ##??# | | ????# #???# ####################### | | ????# #???## ##?????????????????????? | | ?#### ###### ########???????????????# | | ?#""" """""" """"""#????############ | | ?#" " """" " "#????#""""""""""# | | ?#" "" !! "#????#""" """""# | | ?#" " ! "#????#" " " | | ?#""" " ![! "#????#"""" # | | ?#"""""" " " [ "#????#"" " " # | | ?#""""""""""j ! "#????#" """" # | | ?########### " !! "#????#"" # | | ?########### " "#????#" " # | | ?#"""""""""" """" ""#????#""""" " "# | | ?#"""""""" #### ###????#""""""""""# | | ?#"" " " #### ###????############ | | ?#"""" " """" ""#???????????????# | | ?#""" " "#???????????????# | | ?#""""""" " " "" "#???????????????# | | ?#""" " " "" "#????????######## | | ?#""""" " " "#??????###" # | | ??"""" " " ""#??????# | +----------------------------------------------------+ Best States ------------- Heat Dissipation 25 Energy Generation 15 Energy Capacity 250 Matter Stores 350 Matter Capacity 350 Sight Range 18 Terrain Scan Density 10 Evasion (%) 55 Recoil Reduction 1 Authchip Count 1 Item Schematics ----------------- None Robot Schematics ------------------ None Fabricated ------------ Nothing Repaired ---------- Nothing Alien Tech Used ----------------- None Achievements -------------- None Challenges ------------ None Game ------ Seed SmartGuidanceStatue Manual? 0 Play Time 00:41:16 Cumulative 133.7 hours Start 2025.07.06 @ 09:13:22 End 2025.07.06 @ 10:16:27 Sessions 1 Manual Loads 0 Difficulty Rogue Special Mode None Game No. 134 Rogue 132 Adventurer 2 Explorer 0 Win Type - Total 0 Types 0/0/0/0/0/0/0/0/0/0 Lore% 57 Gallery% 54 Achievement% 44 Wizard Run 0 Options --------- Layout 1 ASCII 0 Keyboard 1 Movement Vi Keybinds 0 Fullscreen 2 Font 48/Smallcaps Map View 50x57 Zoom Use 80% Tactical HUD 1 Map Filters NONE Filters NONE Steam 1 RUN: 5119db55-ddd2-4523-917e-535bcd101801